fUST/lending_fUST_20240621
["ID","MTS","AMOUNT","RATE_DAILY","PERIOD"]
[329992840,1718904642761,-1845.16,0.00054794,120]
[329992841,1718904642771,-500.0,0.00054794,120]
[329992842,1718904642780,-500.0,0.00054794,120]
[329992843,1718904642789,-500.0,0.00054794,120]
[329992844,1718904642799,-501.52676042,0.00054794,120]
[329992845,1718904642809,-521.53,0.00054794,120]
[329992846,1718904642819,-534.29582643,0.00054794,120]
[329992847,1718904642828,-500.0,0.00054794,120]
[329992848,1718904642839,-256.06370098,0.00054794,120]
[329992849,1718904642849,-500.0,0.00054794,120]
[329992850,1718904642859,-500.0,0.00054794,120]
[329992851,1718904642869,-500.0,0.00054794,120]
[329992852,1718904642880,-500.0,0.00054794,120]
[329992853,1718904642889,-504.29694182,0.00054794,120]
[329992854,1718904642899,-500.0,0.00054794,120]
[329992855,1718904642908,-500.0,0.00054794,120]
[329992856,1718904642918,-377.1990756,0.00054794,120]
[329992857,1718904642934,-122.8009244,0.00054794,120]
[329992858,1718904642945,-500.0,0.00054794,120]
[329992859,1718904642955,-500.0,0.00054794,120]
[329992860,1718904642964,-500.0,0.00054794,120]
[329992861,1718904642975,-500.0,0.00054794,120]
[329992862,1718904642985,-500.0,0.00054794,2]
[329992863,1718904642995,-500.0,0.00054794,120]
[329992864,1718904643006,-2067.49,0.00054794,120]
[329992865,1718904643017,-500.0,0.00054794,120]
[329992866,1718904643026,-500.0,0.00054794,120]
[329992867,1718904643037,-500.85971969,0.00054794,120]
[329992868,1718904643047,-500.0,0.00054794,120]
[329992869,1718904643057,-500.0,0.00054794,120]
[329992870,1718904643067,-500.0,0.00054794,120]
[329992871,1718904643077,-500.81743505,0.00054794,120]
[329992872,1718904643087,-503.6156687,0.00054794,120]
[329992873,1718904643096,-385.76987526,0.00054794,120]
[329992874,1718904643106,-500.0,0.00054794,120]
[329992875,1718904643116,-500.0,0.00054794,120]
[329992876,1718904643126,-512.47677426,0.00054794,120]
[329992877,1718904643139,-500.0,0.00054794,120]
[329992879,1718904643148,-319.30675189,0.00054794,120]
[329992881,1718904643158,-532.99219048,0.00054794,120]
[329992883,1718904643167,-500.0,0.00054794,120]
[329992885,1718904643176,-509.46178003,0.00054794,120]
[329992887,1718904643185,-500.0,0.00054794,120]
[329992888,1718904643194,-500.0,0.00054794,120]
[329992890,1718904643203,-249.98209039,0.00054794,120]
[329992892,1718904643213,-922.43,0.00054794,120]
[329992894,1718904643226,-500.0,0.00054794,120]
[329992896,1718904643236,-500.0,0.00054794,120]
[329992898,1718904643246,-500.0,0.00054794,120]
[329992900,1718904643255,-500.0,0.00054794,120]
[329992901,1718904643265,-500.0,0.00054794,120]
[329992902,1718904643274,-500.0,0.00054794,120]
[329992903,1718904643284,-500.0,0.00054794,120]
[329992904,1718904643293,-500.0,0.00054794,120]
[329992905,1718904643303,-500.0,0.00054794,120]
[329992906,1718904643312,-500.0,0.00054794,120]
[329992907,1718904643322,-500.0,0.00054794,120]
[329992908,1718904643331,-500.0,0.00054794,120]
[329992909,1718904643341,-500.0,0.00054794,120]
[329992910,1718904643351,-500.0,0.00054794,120]
[329992911,1718904643361,-500.0,0.00054794,120]
[329992912,1718904643371,-500.0,0.00054794,120]
[329992913,1718904643381,-500.0,0.00054794,120]
[329992914,1718904643391,-532.25614218,0.00054794,120]
[329992915,1718904643401,-618.68,0.00054794,120]
[329992916,1718904643410,-506.03558681,0.00054794,120]
[329992917,1718904643420,-500.0,0.00054794,120]
[329992918,1718904643429,-500.0,0.00054794,120]
[329992919,1718904643439,-500.0,0.00054794,120]
[329992920,1718904643448,-1147.51,0.00054794,120]
[329992921,1718904643458,-500.0,0.00054794,7]
[329992922,1718904643467,-500.0,0.00054794,120]
[329992923,1718904643476,-500.0,0.00054794,120]
[329992924,1718904643489,-511.91756309,0.00054794,120]
[329992925,1718904643499,-500.0,0.00054794,120]
[329992926,1718904643509,-584.16558506,0.00054794,120]
[329992927,1718904643518,-500.0,0.00054794,120]
[329992928,1718904643529,-500.0,0.00054794,7]
[329992929,1718904643539,-500.0,0.00054794,120]
[329992930,1718904643548,-507.07245,0.00054794,120]
[329992931,1718904643559,-500.0,0.00054794,120]
[329992932,1718904643568,-500.0,0.00054794,120]
[329992933,1718904643578,-500.0,0.00054794,120]
[329992934,1718904643588,-503.62610073,0.00054794,120]
[329992935,1718904643598,-633.690454,0.00054794,120]
[329992936,1718904643608,-500.0,0.00054794,120]
[329992937,1718904643617,-500.0,0.00054794,120]
[329992938,1718904643627,-500.0,0.00054794,120]
[329992939,1718904643637,-500.0,0.00054794,120]
[329992940,1718904643647,-500.0,0.00054794,120]
[329992941,1718904643656,-500.0,0.00054794,120]
[329992942,1718904643665,-500.0,0.00054794,120]
[329992943,1718904643675,-500.0,0.00054794,120]
[329992944,1718904643684,-500.0,0.00054794,120]
[329992945,1718904643694,-500.0,0.00054794,120]
[329992946,1718904643704,-500.0,0.00054794,120]
[329992947,1718904643713,-500.0,0.00054794,120]
[329992948,1718904643723,-500.0,0.00054794,120]
[329992949,1718904643732,-500.0,0.00054794,120]
[329992950,1718904643742,-500.0,0.00054794,120]
[329992951,1718904643751,-500.0,0.00054794,120]
[329992952,1718904643762,-500.0,0.00054794,120]
[329992953,1718904643771,-500.0,0.00054794,120]
[329992954,1718904643781,-500.0,0.00054794,120]
[329992955,1718904643790,-500.0,0.00054794,120]
[329992956,1718904643799,-500.0,0.00054794,120]
[329992957,1718904643809,-500.0,0.00054794,120]
[329992958,1718904643819,-500.0,0.00054794,120]
[329992959,1718904643829,-500.0,0.00054794,120]
[329992960,1718904643838,-500.0,0.00054794,120]
[329992961,1718904643849,-16367.43,0.00054794,120]
[329992962,1718904643859,-500.0,0.00054794,120]
[329992963,1718904643869,-500.0,0.00054794,120]
[329992964,1718904643879,-500.0,0.00054794,120]
[329992965,1718904643889,-500.0,0.00054794,120]
[329992966,1718904643899,-500.0,0.00054794,120]
[329992967,1718904643909,-2037.95655031,0.00054794,120]
[329992968,1718904643924,-141.56344969,0.00054794,120]
[329992969,1718904643934,-500.0,0.00054794,120]
[329992970,1718904643944,-500.0,0.00054794,120]
[329992971,1718904643954,-500.0,0.00054794,120]
[329992972,1718904643963,-500.0,0.00054794,120]
[329992973,1718904643973,-500.0,0.00054794,120]
[329992974,1718904643983,-1382.95,0.00054794,21]
[329992975,1718904643993,-500.0,0.00054794,120]
[329992976,1718904644004,-500.0,0.00054794,120]
[329992977,1718904644017,-500.0,0.00054794,120]
[329992978,1718904644027,-500.0,0.00054794,120]
[329992979,1718904644037,-500.0,0.00054794,120]
[329992980,1718904644047,-505.58056084,0.00054794,120]
[329992981,1718904644058,-500.0,0.00054794,120]
[329992982,1718904644068,-500.0,0.00054794,120]
[329992983,1718904644078,-660.4,0.00054794,120]
[329992984,1718904644088,-500.0,0.00054794,120]
[329992985,1718904644098,-2120.99,0.00054794,120]
[329992986,1718904644108,-500.0,0.00054794,120]
[329992987,1718904644117,-2721.88,0.00054794,120]
[329992988,1718904644127,-513.48660467,0.00054794,120]
[329992989,1718904644139,-432.48504585,0.00054794,120]
[329992990,1718904644149,-500.0,0.00054794,120]
[329992991,1718904644158,-500.0,0.00054794,120]
[329992992,1718904644168,-501.7411033,0.00054794,120]
[329992993,1718904644178,-500.0,0.00054794,120]
[329992994,1718904644188,-500.0,0.00054794,120]
[329992995,1718904644197,-2370.98,0.00054794,120]
[329992996,1718904644207,-250.0,0.00054794,120]
[329992997,1718904644218,-500.0,0.00054794,120]
[329992998,1718904644228,-454.15113139,0.00054794,120]
[329992999,1718904644237,-528.72821766,0.00054794,120]
[329993000,1718904644247,-500.0,0.00054794,120]
[329993001,1718904644256,-500.0,0.00054794,120]
[329993002,1718904644270,-500.0,0.00054794,120]
[329993003,1718904644279,-500.0,0.00054794,120]
[329993004,1718904644288,-500.0,0.00054794,90]
[329993005,1718904644298,-500.0,0.00054794,120]
[329993006,1718904644307,-1652.2,0.00054794,120]
[329993007,1718904644316,-500.0,0.00054794,120]
[329993008,1718904644325,-500.0,0.00054794,120]
[329993009,1718904644335,-500.0,0.00054794,120]
[329993010,1718904644344,-500.0,0.00054794,120]
[329993011,1718904644354,-500.0,0.00054794,120]
[329993012,1718904644363,-500.0,0.00054794,120]
[329993013,1718904644373,-500.0,0.00054794,120]
[329993014,1718904644382,-500.0,0.00054794,120]
[329993015,1718904644392,-500.0,0.00054794,120]
[329993016,1718904644401,-500.0,0.00054794,120]
[329993017,1718904644410,-439.50203792,0.00054794,7]
[329993028,1718904645214,-993.95361065,0.00054784,3]
[329993029,1718904645229,-1266.79638935,0.00054784,3]
[329993030,1718904645238,-60.49796208,0.00054794,7]
[329993031,1718904645248,-500.0,0.00054794,120]
[329993032,1718904645257,-500.0,0.00054794,120]
[329993033,1718904645268,-306.61483283,0.00054794,120]
[329993034,1718904645279,-193.38516717,0.00054794,120]
[329993035,1718904645289,-500.0,0.00054794,120]
[329993036,1718904645299,-500.0,0.00054794,120]
[329993037,1718904645309,-500.0,0.00054794,120]
[329993038,1718904645318,-500.0,0.00054794,120]
[329993039,1718904645327,-500.0,0.00054794,120]
[329993040,1718904645337,-242.74793433,0.00054794,120]
[329993041,1718904645346,-755.82,0.00054794,120]
[329993042,1718904645355,-755.82,0.00054794,120]
[329993043,1718904645376,-755.82,0.00054794,120]
[329993044,1718904645386,-755.82,0.00054794,120]
[329993045,1718904645398,-755.82,0.00054794,120]
[329993046,1718904645408,-755.82,0.00054794,120]
[329993047,1718904645418,-755.82,0.00054794,120]
[329993048,1718904645429,-166.63661437,0.00054794,120]
[329993049,1718904645443,-333.36338563,0.00054794,120]
[329993050,1718904645453,-500.0,0.00054794,120]
[329993051,1718904645462,-502.10056206,0.00054794,120]
[329993052,1718904645472,-500.0,0.00054794,120]
[329993053,1718904645481,-500.0,0.00054794,120]
[329993054,1718904645491,-1315.82,0.00054794,120]
[329993055,1718904645501,-500.0,0.00054794,120]
[329993056,1718904645512,-500.0,0.00054794,120]
[329993057,1718904645521,-500.0,0.00054794,120]
[329993058,1718904645530,-500.0,0.00054794,120]
[329993059,1718904645541,-1123.1,0.00054794,120]
[329993060,1718904645551,-500.0,0.00054794,120]
[329993061,1718904645560,-500.0,0.00054794,120]
[329993062,1718904645570,-520.6971896,0.00054794,120]
[329993063,1718904645579,-500.0,0.00054794,120]
[329993064,1718904645589,-3206.59523392,0.00054794,120]
[329993070,1718904647343,-3637.10476608,0.00054794,120]
[329993071,1718904647353,-500.0,0.00054794,120]
[329993072,1718904647363,-503.2236552,0.00054794,120]
[329993073,1718904647373,-500.0,0.00054794,120]
[329993074,1718904647383,-500.0,0.00054794,120]
[329993075,1718904647393,-500.0,0.00054794,120]
[329993076,1718904647402,-500.0,0.00054794,120]
[329993077,1718904647412,-3327.46,0.00054794,120]
[329993078,1718904647421,-512.75001546,0.00054794,120]
[329993079,1718904647430,-500.0,0.00054794,120]
[329993080,1718904647440,-500.0,0.00054794,120]
[329993081,1718904647449,-500.0,0.00054794,120]
[329993082,1718904647458,-500.0,0.00054794,120]
[329993083,1718904647467,-123.57156325,0.00054794,120]
[329993084,1718904647479,-254.12294179,0.00054794,120]
[329993085,1718904647490,-500.0,0.00054794,120]
[329993086,1718904647499,-500.0,0.00054794,60]
[329993087,1718904647508,-500.0,0.00054794,120]
[329993088,1718904647517,-981.30148632,0.00054794,120]
[329993133,1718905619124,-158.53577075,0.00020407,2]
[329993134,1718905627130,-1705.87640149,0.00020408,2]
[329993135,1718905643165,-3176.82174069,0.00020408,2]
[329993137,1718905736178,-330.50017341,0.000189,2]
[329993138,1718905736210,-120.79896041,0.00020407,2]
[329993139,1718905752104,-300.0,0.00020407,2]
[329993140,1718905752128,-241.0,0.00020407,2]
[329993141,1718905752158,-24183.25493652,0.00020408,2]
[329993142,1718905752187,-11112.05682486,0.00020408,2]
[329993143,1718905752215,-183.28840625,0.00020996,2]
[329993144,1718905752244,-169.9393678,0.00021096,2]
[329993145,1718905752274,-165.326996,0.00021096,2]
[329993146,1718905752305,-262.0,0.00022448,2]
[329993147,1718905752334,-4355.66276875,0.00022897,2]
[329993148,1718905752361,-330.50017341,0.000239,2]
[329993149,1718905752391,-1193.0797676,0.00024984,2]
[329993150,1718905752416,-770.7894087,0.00025663,2]
[329993151,1718905752443,-500.0,0.00028396,2]
[329993152,1718905752470,-415.24829774,0.00028396,2]
[329993153,1718905752507,-500.0,0.00028396,2]
[329993154,1718905752539,-377.31534047,0.00028396,2]
[329993155,1718905752573,-500.0,0.00028396,2]
[329993156,1718905752599,-500.0,0.00028396,2]
[329993157,1718905752624,-500.0,0.00028396,2]
[329993158,1718905752652,-415.35203795,0.00028396,2]
[329993159,1718905752695,-330.50017341,0.000289,2]
[329993160,1718905752732,-707.639195,0.00034113,2]
[329993161,1718905752768,-1032.36,0.00034468,3]
[329993162,1718905752797,-1767.78,0.00034478,3]
[329993163,1718905752831,-1473.15,0.00034478,3]
[329993164,1718905752865,-4563.60436642,0.00034488,2]
[329993186,1718905833192,-612.735,0.0002701,2]
[329993187,1718905833215,-5406.22644986,0.0002701,2]
[329993188,1718905833227,-14958.97607164,0.0002701,2]
[329993189,1718905833237,-1340.60374189,0.00028397,120]
[329993190,1718905833246,-30170.0011063,0.00028397,7]
[329993191,1718905833256,-2562.68354179,0.00028397,2]
[329993192,1718905833268,-13357.29429114,0.00028397,2]
[329993193,1718905833277,-710.43,0.00034478,3]
[329993194,1718905833287,-1109.22,0.00034478,3]
[329993195,1718905833296,-1648.13935063,0.00034488,2]
[329993216,1718905839470,-1674.57177587,0.00028297,2]
[329993218,1718905839481,-924.35,0.00034478,3]
[329993220,1718905839491,-146480.28090593,0.00034488,2]
[329993222,1718905839501,-5946.73404018,0.00036,30]
[329993224,1718905839517,-158.203238,0.00044507,2]
[329993226,1718905839527,-470.855467,0.00049,120]
[329993228,1718905839537,-765.44214277,0.00049999,4]
[329993230,1718905839547,-5139.8284215,0.0005,4]
[329993232,1718905839558,-153.0,0.00051091,7]
[329993234,1718905839568,-238.08187166,0.00052899,4]
[329993235,1718905839578,-26688.0,0.000529,120]
[329993236,1718905839588,-249.21399496,0.00053,120]
[329993237,1718905839602,-214.67,0.0005445,62]
[329993238,1718905839612,-225.0,0.0005445,62]
[329993239,1718905839622,-150.5,0.0005446,62]
[329993240,1718905839634,-225.0,0.0005446,62]
[329993241,1718905839644,-150.5,0.0005447,62]
[329993242,1718905839655,-225.0,0.0005447,62]
[329993243,1718905839665,-14595.57,0.0005448,120]
[329993244,1718905839675,-263.50843037,0.00054499,4]
[329993245,1718905839685,-8866.0,0.000545,120]
[329993246,1718905839695,-2000.0,0.00054694,2]
[329993247,1718905839704,-1462.28459934,0.00054699,4]
[329993248,1718905839714,-1402.97,0.000547,120]
[329993249,1718905839724,-4929.76885588,0.00054713,120]
[329993250,1718905839734,-500.0,0.00054793,120]
[329993251,1718905839744,-500.0,0.00054793,120]
[329993252,1718905839754,-190.35735123,0.00054793,120]
[329993253,1718905839765,-500.0,0.00054793,120]
[329993254,1718905839776,-500.0,0.00054793,120]
[329993255,1718905839785,-970.10604973,0.00054794,61]
[329993256,1718905839795,-500.0,0.00054794,120]
[329993257,1718905839805,-500.0,0.00054794,120]
[329993258,1718905839815,-500.0,0.00054794,120]
[329993259,1718905839825,-500.0,0.00054794,120]
[329993260,1718905839835,-500.0,0.00054794,120]
[329993261,1718905839844,-500.0,0.00054794,120]
[329993262,1718905839855,-500.0,0.00054794,120]
[329993263,1718905839864,-519.29841364,0.00054794,120]
[329993264,1718905839874,-190.0202906,0.00054794,120]
[329993265,1718905839885,-500.0,0.00054794,120]
[329993266,1718905840015,-500.0,0.00054794,120]
[329993267,1718905840027,-500.0,0.00054794,120]
[329993268,1718905840036,-500.0,0.00054794,120]
[329993269,1718905840047,-500.0,0.00054794,120]
[329993270,1718905840057,-500.0,0.00054794,120]
[329993271,1718905840066,-500.0,0.00054794,120]
[329993272,1718905840076,-500.0,0.00054794,120]
[329993273,1718905840086,-500.0,0.00054794,120]
[329993274,1718905840095,-500.0,0.00054794,120]
[329993275,1718905840104,-502.5812045,0.00054794,120]
[329993276,1718905840114,-500.0,0.00054794,120]
[329993277,1718905840124,-500.0,0.00054794,120]
[329993278,1718905840135,-500.0,0.00054794,120]
[329993279,1718905840145,-500.0,0.00054794,120]
[329993280,1718905840155,-500.0,0.00054794,120]
[329993281,1718905840165,-500.0,0.00054794,120]
[329993282,1718905840175,-500.0,0.00054794,120]
[329993283,1718905840185,-500.0,0.00054794,120]
[329993284,1718905840194,-500.0,0.00054794,120]
[329993285,1718905840204,-503.97337733,0.00054794,120]
[329993286,1718905840213,-500.0,0.00054794,120]
[329993287,1718905840223,-500.00000095,0.00054794,120]
[329993288,1718905840232,-500.0,0.00054794,120]
[329993289,1718905840242,-518.15210515,0.00054794,120]
[329993290,1718905840251,-500.0,0.00054794,120]
[329993291,1718905840261,-500.0,0.00054794,120]
[329993292,1718905840272,-588.21665389,0.00054794,120]
[329993293,1718905840281,-500.0,0.00054794,120]
[329993294,1718905840290,-500.0,0.00054794,120]
[329993295,1718905840300,-569.13777399,0.00054794,120]
[329993296,1718905840309,-240.28167332,0.00054794,120]
[329993297,1718905840318,-500.0,0.00054794,120]
[329993298,1718905840328,-500.0,0.00054794,120]
[329993299,1718905840337,-520.64084309,0.00054794,120]
[329993300,1718905840347,-500.0,0.00054794,120]
[329993301,1718905840357,-219.26218121,0.00054794,120]
[329993302,1718905840367,-272.81649475,0.00054794,120]
[329993303,1718905840377,-500.0,0.00054794,120]
[329993304,1718905840387,-249.04097137,0.00054794,120]
[329993305,1718905840396,-500.0,0.00054794,120]
[329993306,1718905840406,-500.0,0.00054794,120]
[329993307,1718905840416,-404.51188124,0.00054794,120]
[329993308,1718905840426,-967.33,0.00054794,120]
[329993309,1718905840435,-500.0,0.00054794,120]
[329993310,1718905840445,-500.0,0.00054794,120]
[329993311,1718905840455,-500.0,0.00054794,120]
[329993312,1718905840464,-500.0,0.00054794,120]
[329993313,1718905840474,-500.0,0.00054794,120]
[329993314,1718905840483,-500.0,0.00054794,120]
[329993315,1718905840493,-500.11867,0.00054794,120]
[329993316,1718905840502,-500.0,0.00054794,120]
[329993317,1718905840513,-500.0,0.00054794,120]
[329993318,1718905840528,-500.0,0.00054794,120]
[329993319,1718905840538,-647.2507586,0.00054794,120]
[329993320,1718905840547,-442.04623323,0.00054794,120]
[329993321,1718905840562,-500.0,0.00054794,120]
[329993322,1718905840574,-277.10452312,0.00054794,120]
[329993323,1718905840583,-500.0,0.00054794,120]
[329993324,1718905840593,-500.0,0.00054794,120]
[329993325,1718905840606,-500.0,0.00054794,120]
[329993326,1718905840616,-500.0,0.00054794,120]
[329993327,1718905840626,-500.0,0.00054794,120]
[329993328,1718905840636,-500.0,0.00054794,120]
[329993329,1718905840646,-500.0,0.00054794,120]
[329993330,1718905840655,-500.0,0.00054794,30]
[329993331,1718905840665,-305.36070266,0.00054794,120]
[329993332,1718905840674,-500.0,0.00054794,7]
[329993333,1718905840684,-500.0,0.00054794,120]
[329993334,1718905840695,-500.0,0.00054794,120]
[329993335,1718905840705,-500.0,0.00054794,120]
[329993336,1718905840714,-500.0,0.00054794,120]
[329993337,1718905840723,-500.0,0.00054794,120]
[329993338,1718905840734,-500.0,0.00054794,120]
[329993340,1718905840743,-500.0,0.00054794,120]
[329993341,1718905840753,-500.0,0.00054794,120]
[329993343,1718905840762,-500.0,0.00054794,7]
[329993344,1718905840774,-523.02,0.00054794,120]
[329993346,1718905840785,-500.0,0.00054794,120]
[329993348,1718905840795,-526.18954747,0.00054794,120]
[329993349,1718905840804,-1000.0,0.00054794,120]
[329993350,1718905840814,-503.00804755,0.00054794,120]
[329993351,1718905840824,-500.0,0.00054794,120]
[329993352,1718905840834,-500.0,0.00054794,120]
[329993353,1718905840843,-509.48965602,0.00054794,120]
[329993354,1718905840853,-500.0,0.00054794,120]
[329993355,1718905840862,-678.95,0.00054794,120]
[329993356,1718905840872,-503.31550006,0.00054794,120]
[329993357,1718905840881,-500.0,0.00054794,120]
[329993358,1718905840891,-500.0,0.00054794,120]
[329993359,1718905840900,-500.0,0.00054794,120]
[329993360,1718905840910,-500.0,0.00054794,120]
[329993361,1718905840919,-500.76740076,0.00054794,7]
[329993362,1718905840929,-500.0,0.00054794,120]
[329993363,1718905840938,-500.0,0.00054794,120]
[329993364,1718905840947,-500.0,0.00054794,120]
[329993365,1718905840957,-500.0,0.00054794,120]
[329993366,1718905840966,-500.0,0.00054794,120]
[329993367,1718905840975,-500.0,0.00054794,120]
[329993368,1718905840985,-507.03353636,0.00054794,120]
[329993369,1718905840995,-509.02079936,0.00054794,120]
[329993370,1718905841004,-500.0,0.00054794,120]
[329993372,1718905841013,-523.61739141,0.00054794,120]
[329993374,1718905841024,-510.54390354,0.00054794,120]
[329993376,1718905841033,-500.0,0.00054794,120]
[329993377,1718905841042,-516.61391233,0.00054794,120]
[329993379,1718905841051,-500.0,0.00054794,120]
[329993381,1718905841060,-500.0,0.00054794,120]
[329993383,1718905841069,-500.0,0.00054794,120]
[329993384,1718905841079,-530.11055638,0.00054794,120]
[329993386,1718905841088,-500.0,0.00054794,120]
[329993388,1718905841097,-500.0,0.00054794,120]
[329993389,1718905841106,-500.0,0.00054794,120]
[329993390,1718905841116,-316.99697389,0.00054794,120]
[329993391,1718905841125,-504.49477912,0.00054794,120]
[329993392,1718905841134,-500.0,0.00054794,120]
[329993393,1718905841144,-500.0,0.00054794,120]
[329993394,1718905841153,-500.0,0.00054794,120]
[329993395,1718905841162,-504.49387885,0.00054794,120]
[329993396,1718905841172,-500.0,0.00054794,120]
[329993397,1718905841181,-1958.72,0.00054794,120]
[329993398,1718905841190,-500.0,0.00054794,120]
[329993399,1718905841200,-500.0,0.00054794,120]
[329993400,1718905841209,-500.0,0.00054794,120]
[329993401,1718905841218,-500.0,0.00054794,120]
[329993402,1718905841227,-500.0,0.00054794,120]
[329993403,1718905841237,-500.0,0.00054794,120]
[329993404,1718905841247,-501.74491884,0.00054794,120]
[329993405,1718905841255,-500.0,0.00054794,120]
[329993406,1718905841265,-500.0,0.00054794,120]
[329993408,1718905841274,-500.0,0.00054794,120]
[329993410,1718905841284,-500.0,0.00054794,120]
[329993412,1718905841293,-500.0,0.00054794,120]
[329993413,1718905841303,-500.0,0.00054794,120]
[329993414,1718905841312,-500.0,0.00054794,120]
[329993415,1718905841322,-504.32063269,0.00054794,120]
[329993416,1718905841331,-184.98222724,0.00054794,120]
[329993417,1718905841341,-506.40892919,0.00054794,120]
[329993418,1718905841351,-500.0,0.00054794,120]
[329993419,1718905841362,-500.0,0.00054794,120]
[329993420,1718905841372,-500.0,0.00054794,120]
[329993421,1718905841382,-441.56306542,0.00054794,120]
[329993422,1718905841392,-500.0,0.00054794,120]
[329993423,1718905841402,-500.0,0.00054794,120]
[329993424,1718905841412,-500.0,0.00054794,120]
[329993425,1718905841421,-508.05514053,0.00054794,120]
[329993426,1718905841431,-505.11083335,0.00054794,120]
[329993427,1718905841440,-500.0,0.00054794,120]
[329993428,1718905841450,-500.0,0.00054794,120]
[329993429,1718905841459,-500.0,0.00054794,120]
[329993430,1718905841469,-500.0,0.00054794,120]
[329993431,1718905841479,-583.71942751,0.00054794,120]
[329993432,1718905841488,-500.0,0.00054794,120]
[329993433,1718905841498,-506.93436528,0.00054794,120]
[329993434,1718905841507,-500.0,0.00054794,120]
[329993435,1718905841524,-250.0,0.00054794,120]
[329993436,1718905841533,-500.0,0.00054794,120]
[329993437,1718905841543,-256.58369329,0.00054794,120]
[329993438,1718905841553,-500.0,0.00054794,120]
[329993439,1718905841563,-500.0,0.00054794,120]
[329993440,1718905841573,-500.0,0.00054794,2]
[329993441,1718905841582,-500.0,0.00054794,120]
[329993442,1718905841591,-500.0,0.00054794,120]
[329993443,1718905841603,-500.0,0.00054794,120]
[329993444,1718905841613,-500.0,0.00054794,120]
[329993445,1718905841622,-542.24654691,0.00054794,120]
[329993446,1718905841631,-500.0,0.00054794,120]
[329993447,1718905841640,-500.0,0.00054794,120]
[329993448,1718905841649,-2270.49,0.00054794,120]
[329993449,1718905841658,-500.0,0.00054794,120]
[329993450,1718905841667,-501.9756095,0.00054794,120]
[329993451,1718905841677,-500.0,0.00054794,120]
[329993452,1718905841687,-500.0,0.00054794,120]
[329993453,1718905841696,-500.0,0.00054794,120]
[329993454,1718905841706,-500.0,0.00054794,120]
[329993455,1718905841715,-507.31802247,0.00054794,120]
[329993456,1718905841724,-500.0,0.00054794,120]
[329993457,1718905841734,-282.64365373,0.00054794,120]
[329993458,1718905841743,-500.0,0.00054794,120]
[329993459,1718905841752,-525.29369667,0.00054794,120]
[329993460,1718905841762,-504.12922519,0.00054794,120]
[329993461,1718905841773,-500.0,0.00054794,120]
[329993462,1718905841782,-500.0,0.00054794,120]
[329993463,1718905841791,-500.0,0.00054794,30]
[329993464,1718905841800,-500.0,0.00054794,120]
[329993465,1718905841810,-500.0,0.00054794,120]
[329993466,1718905841820,-500.0,0.00054794,120]
[329993467,1718905841830,-500.0,0.00054794,120]
[329993468,1718905841840,-500.0,0.00054794,120]
[329993469,1718905841849,-500.0,0.00054794,120]
[329993470,1718905841860,-500.07468102,0.00054794,120]
[329993471,1718905841871,-500.0,0.00054794,120]
[329993472,1718905841880,-500.0,0.00054794,120]
[329993473,1718905841889,-500.0,0.00054794,120]
[329993474,1718905841898,-500.0,0.00054794,120]
[329993475,1718905841909,-507.91711026,0.00054794,120]